{"text_format":"2","workbook":"xlsx","n_sheets":17,"sheets":["Főösszesítő","Munkanem összesítő","2.Bontás, építőanyagok újraha","15.Zsaluzás és állványozás","19.Költségtérítések","21.Irtás, föld- és sziklamunka","31.Helyszíni beton és vasbeton","36.Vakolás és rabicolás","42.Hideg- és melegburkolatok k","43.Bádogozás","44.Fa- és műanyag szerkezet el","45.Fém nyílászáró és épületlak","47.Felületképzés","48.Szigetelés","71.Elektromos energiaellátás,","82.Épületgépészeti szerelvénye","90.Ideiglenes felületvédelem é"],"not_rendered":{"charts":0,"images":0,"macros":0,"external_links":0,"defined_names":0,"comments":0,"pivot_tables":0},"unopened":[],"bounds":{"document_bytes":16777216,"sheet_cells":100000,"run_cost":"one","rows_first":2000,"rows_last":500,"rows_between":2000,"halvings":0,"cell_chars":16384,"cell_head_chars":4096},"cells_cut":0,"cells_raw":0,"read":"whole","date_system":"1900"}

{"sheet":"Főösszesítő","index":0,"n_rows":9,"n_cols":4,"rows_kept":9,"cut":false,"hidden":false,"merged":[[8,2,8,3],[0,0,0,3],[2,0,2,3],[5,2,5,3],[6,2,6,3],[7,2,7,3]]}
[]
[]
["Költségvetés főösszesítő"]
["Megnevezés",null,"Anyagköltség","Díjköltség"]
["1 Építmény közvetlen költségei",null,{"$f":"'Munkanem összesítő'!C17","v":0},{"$f":"'Munkanem összesítő'!D17","v":0}]
["2 Tartalékkeret (5%)",0.05,{"$f":"ROUND(C5*(B6+D5),0)","v":0}]
["3.1 ÁFA vetítési alap",null,{"$f":"ROUND(C5+D5+C6,0)","v":0}]
["3.2 ÁFA",0.27,{"$f":"ROUND(C7*B8,0)","v":0}]
["4 A munka ára (HUF)",null,{"$f":"ROUND(C8+C7,0)","v":0}]

{"sheet":"Munkanem összesítő","index":1,"n_rows":17,"n_cols":4,"rows_kept":17,"cut":false,"hidden":false,"merged":[]}
["Ssz.","Megnevezés","Anyagköltség","Díjköltség"]
["2","Bontás, építőanyagok újrahasznosítása",{"$f":"'2.Bontás, építőanyagok újraha'!H3","v":0},{"$f":"'2.Bontás, építőanyagok újraha'!I3","v":0}]
["15","Zsaluzás és állványozás",{"$f":"'15.Zsaluzás és állványozás'!H3","v":0},{"$f":"'15.Zsaluzás és állványozás'!I3","v":0}]
["19","Költségtérítések",{"$f":"'19.Költségtérítések'!H3","v":0},{"$f":"'19.Költségtérítések'!I3","v":0}]
["21","Irtás, föld- és sziklamunka",{"$f":"'21.Irtás, föld- és sziklamunka'!H4","v":0},{"$f":"'21.Irtás, föld- és sziklamunka'!I4","v":0}]
["31","Helyszíni beton és vasbeton munkák",{"$f":"'31.Helyszíni beton és vasbeton'!H4","v":0},{"$f":"'31.Helyszíni beton és vasbeton'!I4","v":0}]
["36","Vakolás és rabicolás",{"$f":"'36.Vakolás és rabicolás'!H4","v":0},{"$f":"'36.Vakolás és rabicolás'!I4","v":0}]
["42","Hideg- és melegburkolatok készítése, aljzat előkészítés",{"$f":"'42.Hideg- és melegburkolatok k'!H13","v":0},{"$f":"'42.Hideg- és melegburkolatok k'!I13","v":0}]
["43","Bádogozás",{"$f":"'43.Bádogozás'!H4","v":0},{"$f":"'43.Bádogozás'!I4","v":0}]
["44","Fa- és műanyag szerkezet elhelyezése",{"$f":"'44.Fa- és műanyag szerkezet el'!H10","v":0},{"$f":"'44.Fa- és műanyag szerkezet el'!I10","v":0}]
["45","Fém nyílászáró és épületlakatos szerkezet elhelyezése",{"$f":"'45.Fém nyílászáró és épületlak'!H3","v":0},{"$f":"'45.Fém nyílászáró és épületlak'!I3","v":0}]
["47","Felületképzés",{"$f":"'47.Felületképzés'!H13","v":0},{"$f":"'47.Felületképzés'!I13","v":0}]
["48","Szigetelés",{"$f":"'48.Szigetelés'!H3","v":0},{"$f":"'48.Szigetelés'!I3","v":0}]
["71","Elektromos energiaellátás, villanyszerelés",{"$f":"'71.Elektromos energiaellátás,'!H3","v":0},{"$f":"'71.Elektromos energiaellátás,'!I3","v":0}]
["82","Épületgépészeti szerelvények és berendezések szerelése",{"$f":"'82.Épületgépészeti szerelvénye'!H7","v":0},{"$f":"'82.Épületgépészeti szerelvénye'!I7","v":0}]
["90","Ideiglenes felületvédelem és takarítási munkák",{"$f":"'90.Ideiglenes felületvédelem é'!H3","v":0},{"$f":"'90.Ideiglenes felületvédelem é'!I3","v":0}]
[null,"Összesen (HUF)",{"$f":"ROUND(SUM(C2:C16),0)","v":0},{"$f":"ROUND(SUM(D2:D16),0)","v":0}]

{"sheet":"2.Bontás, építőanyagok újraha","index":2,"n_rows":3,"n_cols":9,"rows_kept":3,"cut":false,"hidden":false,"merged":[]}
["Ssz.","Tételszám","Tétel szövege","Menny.","Egység","Anyag egységár","Díj egységre","Anyag összesen","Díj összesen"]
[1,"02-030-7.1","Vegyes építési- bontási törmelék felrakása szállítóeszközre gépi erővel, kiegészítő kézi munkával",12,"m3",null,null,{"$f":"ROUND(F2*D2,0)","v":0},{"$f":"ROUND(G2*D2,0)","v":0}]
[null,null,"Munkanem összesen (HUF)",{"$nulls":4},{"$f":"ROUND(SUM(H2:H2),0)","v":0},{"$f":"ROUND(SUM(I2:I2),0)","v":0}]

{"sheet":"15.Zsaluzás és állványozás","index":3,"n_rows":3,"n_cols":9,"rows_kept":3,"cut":false,"hidden":false,"merged":[]}
["Ssz.","Tételszám","Tétel szövege","Menny.","Egység","Anyag egységár","Díj egységre","Anyag összesen","Díj összesen"]
[1,"15-005-6","Zuhanytálca padka zsaluzása",0.54,"m2",null,null,{"$f":"ROUND(F2*D2,0)","v":0},{"$f":"ROUND(G2*D2,0)","v":0}]
[null,null,"Munkanem összesen (HUF)",{"$nulls":4},{"$f":"ROUND(SUM(H2:H2),0)","v":0},{"$f":"ROUND(SUM(I2:I2),0)","v":0}]

{"sheet":"19.Költségtérítések","index":4,"n_rows":3,"n_cols":9,"rows_kept":3,"cut":false,"hidden":false,"merged":[]}
["Ssz.","Tételszám","Tétel szövege","Menny.","Egység","Anyag egységár","Díj egységre","Anyag összesen","Díj összesen"]
[1,"19-090-1","Építmények átadás előtti utolsó takarítása (pipere)",1,"db",null,null,{"$f":"ROUND(F2*D2,0)","v":0},{"$f":"ROUND(G2*D2,0)","v":0}]
[null,null,"Munkanem összesen (HUF)",{"$nulls":4},{"$f":"ROUND(SUM(H2:H2),0)","v":0},{"$f":"ROUND(SUM(I2:I2),0)","v":0}]

{"sheet":"21.Irtás, föld- és sziklamunka","index":5,"n_rows":4,"n_cols":9,"rows_kept":4,"cut":false,"hidden":false,"merged":[]}
["Ssz.","Tételszám","Tétel szövege","Menny.","Egység","Anyag egységár","Díj egységre","Anyag összesen","Díj összesen"]
[1,"21-011-11.4","Építési törmelék konténeres elszállítása, lerakása, lerakóhelyi díjjal, 6,0 m³-es konténerbe",2,"db",null,null,{"$f":"ROUND(F2*D2,0)","v":0},{"$f":"ROUND(G2*D2,0)","v":0}]
[2,"21-011-12","Munkahelyi depóniából építési törmelék konténerbe rakása,  kézi erővel, önálló munka esetén elszámolva, konténer szállítás nélkül",12,"m3",null,null,{"$f":"ROUND(F3*D3,0)","v":0},{"$f":"ROUND(G3*D3,0)","v":0}]
[null,null,"Munkanem összesen (HUF)",{"$nulls":4},{"$f":"ROUND(SUM(H2:H3),0)","v":0},{"$f":"ROUND(SUM(I2:I3),0)","v":0}]

{"sheet":"31.Helyszíni beton és vasbeton","index":6,"n_rows":4,"n_cols":9,"rows_kept":4,"cut":false,"hidden":false,"merged":[]}
["Ssz.","Tételszám","Tétel szövege","Menny.","Egység","Anyag egységár","Díj egységre","Anyag összesen","Díj összesen"]
[1,"31-000-13.2","Zuhanytálca és padka bontása 10 cm vastagságig, kavicsbetonból, salakbetonból",3.6,"m2",null,null,{"$f":"ROUND(F2*D2,0)","v":0},{"$f":"ROUND(G2*D2,0)","v":0}]
[2,"31-051-4.1-0121110","Beton zuhanytálca készítése,  X0b(H) környezeti osztályú, kissé képlékeny konzisztenciájú betonból, cementsimítással, C16/20 - X0b(H) - 16 - F2 - CEM 42,5, m = 6,4 finomsági modulussal",3.6,"m2",null,null,{"$f":"ROUND(F3*D3,0)","v":0},{"$f":"ROUND(G3*D3,0)","v":0}]
[null,null,"Munkanem összesen (HUF)",{"$nulls":4},{"$f":"ROUND(SUM(H2:H3),0)","v":0},{"$f":"ROUND(SUM(I2:I3),0)","v":0}]

{"sheet":"36.Vakolás és rabicolás","index":7,"n_rows":4,"n_cols":9,"rows_kept":4,"cut":false,"hidden":false,"merged":[]}
["Ssz.","Tételszám","Tétel szövege","Menny.","Egység","Anyag egységár","Díj egységre","Anyag összesen","Díj összesen"]
[1,"47-000-3.1.1-0159431","Külső festéseknél felület előkészítése, részmunkák; festékeltávolítás maratással, tagolatlan felületen, Caparol Grüner Abbeizer festékek és vakolatok eltávolítására alkalmas környezetbarát lemarató anyag",20,"m2",null,null,{"$f":"ROUND(F2*D2,0)","v":0},{"$f":"ROUND(G2*D2,0)","v":0}]
[2,"47-013-1.2.1.1.2-0160007","Mészfestések, korszerű gyári készrekevert magas vízgőzáteresztő képességű fehér vagy színes mészfestékkel, vakolaton, két rétegben, tagolt sima felületen, POLI-FARBE kül- és beltéri mészfesték",158,"m2",null,null,{"$f":"ROUND(F3*D3,0)","v":0},{"$f":"ROUND(G3*D3,0)","v":0}]
[null,null,"Munkanem összesen (HUF)",{"$nulls":4},{"$f":"ROUND(SUM(H2:H3),0)","v":0},{"$f":"ROUND(SUM(I2:I3),0)","v":0}]

{"sheet":"42.Hideg- és melegburkolatok k","index":8,"n_rows":13,"n_cols":9,"rows_kept":13,"cut":false,"hidden":false,"merged":[]}
["Ssz.","Tételszám","Tétel szövege","Menny.","Egység","Anyag egységár","Díj egységre","Anyag összesen","Díj összesen"]
[1,"42-000-2.1","Lapburkolatok bontása, padlóburkolat bármely méretű kőagyag, mozaik vagy tört mozaik (NOVA) lapból",84,"m2",null,null,{"$f":"ROUND(F2*D2,0)","v":0},{"$f":"ROUND(G2*D2,0)","v":0}]
[2,"42-000-2.2","Lapburkolatok bontása, fal-, pillér- és oszlopburkolat, bármely méretű mozaik, kőagyag és csempe",88,"m2",null,null,0,0]
[3,"42-012-1.1.1.2.1.1-0313116","Fal-, pillér-, oszlop- és lábazatburkolat készítése beltérben, tégla, beton, vakolt alapfelületen, gres, kőporcelán lappal, kötésben vagy hálósan, 3-5 mm vtg. ragasztóba rakva, 1-10 mm fugaszélességgel, 20x20 - 40x40 cm közötti lapmérettel, MAPEI Keraflex cementkötésű ragasztóhabarcs, szürke, Csz: 119125 MAPEI Ultracolor Plus fugázóhabarcs, fehér, Csz: 6010028A",88,"m2",null,null,0,0]
[4,"42-022-1.1.3.2.1.1-0313116","Padlóburkolat készítése, beltérben, kenhető szigetelésre, gres, kőporcelán lappal, kötésben vagy hálósan, 3-5 mm vtg. ragasztóba rakva, 1-10 mm fugaszélességgel, 20x20 - 40x40 cm közötti lapmérettel, MAPEI Keraflex cementkötésű ragasztóhabarcs, szürke, Csz: 119125 MAPEI Ultracolor Plus fugázóhabarcs, fehér, Csz: 6010028A",94,"m2",null,null,0,0]
[5,"42-042-6.1.2.2-0313901","Kisegítő- és részmunkák, parketta csiszolása és lakkozása, nagy igénybevételre, vízbázisú lakkal, MAPEI Ultracoat Universal Base egykomponensű, vizes bázisú alapozó, Csz:7376005 MAPEI Ultracoat Easy Plus S/60 egykomponensű, vizesdiszperziós, poliuretán lakk,selyemfényű, Csz: 7372910 MAPEI Ultracoat Binder oldószermentes, vizesdiszperziós kitöltőanyag, Csz:7372805",516,"m2",null,null,0,0]
[6,"42-000-3.2.2","Fa-, hézagmentes műanyag- és szőnyegburkolatok bontása, csaphornyos vagy mozaikparketta, 22 mm vastag aljzatbetonra ragasztva",42,"m2",null,null,0,0]
[7,"42-041-2.3.1-0215096","Újonnan készült aljzat kiegyenlítése ragasztott parketta, valamint rugalmas burkolat alá (nagy igénybevétel) erősen nedves cementesztrich és betonpadló felület előkészítése, 3 mm vastagságban (<6 CM%), Baumit Nivello Quattro önterülő aljzatkiegyenlítő, max.: 20 mm, Cikkszám: 156204 Baumit Grund, nedvszívó alapfelület alapozására, Cikkszám: 255405",42,"m2",null,null,0,0]
[8,"42-042-4.2.1.2-0113413","Parkettafektetés, szalagparkettából kiegyenlített aljzatra, úsztatott fektetéssel, összepattintva, Háromrétegű készparketta, 2200x192x14 mm, gőzölt bükk, standard, szegőléccel ",42,"m2",null,null,0,0]
[9,"42-042-22.1-0312087","Linóleum burkolat fektetése szabványos, kiegyenlített aljzatra, lemezből ragasztóanyaggal, szegéllyel, Tarkett Silencio linóleum burkolat, XF felületnemesítés, 3,8 mm vtg., 2 x 20 m, 17 szín",236,"m2",null,null,0,0]
[10,"42-000-3.4","Fa-, hézagmentes műanyag- és szőnyegburkolatok bontása, gumilemez vagy PVC burkolat tekercsből, lapokból vagy lépcsőn betétként",236,"m2",null,null,0,0]
[11,"42-000-2.3","Lapburkolatok bontása, lábazatburkolat 0,50 m magasságig,  egyenes egysoros vagy lépcsős kivitelben, 10x10 - 20x20 cm-es lapméretig",45,"m",null,null,0,0]
[null,null,"Munkanem összesen (HUF)",{"$nulls":4},{"$f":"ROUND(SUM(H2:H12),0)","v":0},{"$f":"ROUND(SUM(I2:I12),0)","v":0}]

{"sheet":"43.Bádogozás","index":9,"n_rows":4,"n_cols":9,"rows_kept":4,"cut":false,"hidden":false,"merged":[]}
["Ssz.","Tételszám","Tétel szövege","Menny.","Egység","Anyag egységár","Díj egységre","Anyag összesen","Díj összesen"]
[1,"43-000-1","Függőereszcsatorna bontása, 50 cm kiterített szélességig",76,"m",null,null,{"$f":"ROUND(F2*D2,0)","v":0},{"$f":"ROUND(G2*D2,0)","v":0}]
[2,"43-002-1.1-0147231","Függőereszcsatorna szerelése, félkörszelvényű, bármilyen kiterített szélességben, minősített ötvözött horganylemezből, VMZINC ereszrendszer, félkörszelvényű ereszcsatorna, előpatinázott ANTHRA-ZINC (~RAL7021) felülettel, 0,7x333x4000 mm, Ref.:05047",76,"m",null,null,{"$f":"ROUND(F3*D3,0)","v":0},{"$f":"ROUND(G3*D3,0)","v":0}]
[null,null,"Munkanem összesen (HUF)",{"$nulls":4},{"$f":"ROUND(SUM(H2:H3),0)","v":0},{"$f":"ROUND(SUM(I2:I3),0)","v":0}]

{"sheet":"44.Fa- és műanyag szerkezet el","index":10,"n_rows":10,"n_cols":9,"rows_kept":10,"cut":false,"hidden":false,"merged":[]}
["Ssz.","Tételszám","Tétel szövege","Menny.","Egység","Anyag egységár","Díj egységre","Anyag összesen","Díj összesen"]
[1,"44-000-1.1","Fa vagy műanyag nyílászáró szerkezetek bontása, ajtó, ablak vagy kapu, 2,00 m²-ig",7.56,"m²",null,null,{"$f":"ROUND(F2*D2,0)","v":0},{"$f":"ROUND(G2*D2,0)","v":0}]
[2,"44-000-1.2","Fa vagy műanyag nyílászáró szerkezetek bontása, ajtó, ablak vagy kapu, 2,01-4,00 m² között",43,"m²",null,null,0,0]
[3,"44-001-2.1.1","Fa kültéri nyílászárók elhelyezése, gerébtokos bejárati ajtó (szerelvényezéssel, illesztéssel), 6,01-10,00 m kerület között",9,"db",null,null,0,0]
[4,"44-002-1.3.1.1-0120089","Fa kültéri nyílászárók, hőszigetelt, fokozott légzárású ablak elhelyezése, előre kihagyott falnyílásba, (szerelvényezéssel, illesztéssel), 4,00 m kerületig, bukó-nyíló, egyszárnyú bukó-nyíló ablak, U = 1,1 W/m²K lazúros, hossztoldás nélküli 60 x 120 cm",3,"db",null,null,0,0]
[5,"44-002-1.3.2.1-0120093","Fa kültéri nyílászárók, hőszigetelt, fokozott légzárású ablak elhelyezése, előre kihagyott falnyílásba, (szerelvényezéssel, illesztéssel), 4,00 m kerület felett, bukó-nyíló,   egyszárnyú bukó-nyíló ablak, U = 1,1 W/m²K alapimpregnált, hossztoldott 60 x 180 cm szúnyoghálóval",5,"db",null,null,0,0]
[6,"44-002-1.3.2.1-0120124","Fa kültéri nyílászárók, hőszigetelt, fokozott légzárású ablak elhelyezése, előre kihagyott falnyílásba, (szerelvényezéssel, illesztéssel), 4,00 m kerület felett, bukó-nyíló,  egyszárnyú bukó-nyíló ablak, U = 1,1 W/m²K alapimpregnált, hossztoldott 120 x 90 cm",3,"db",null,null,0,0]
[7,"44-002-1.3.2.6-0120247","Fa kültéri nyílászárók, hőszigetelt, fokozott légzárású ablak elhelyezése, előre kihagyott falnyílásba, (szerelvényezéssel, illesztéssel), 4,00 m kerület felett, középnyíló-nyíló, kétszárnyú középnyíló-nyíló ablak, U = 1,1 W/m²K alapimpregnált, hossztoldott 180 x 180 cm",1,"db",null,null,0,0]
[8,"44-002-1.3.2.6-0120234","Fa kültéri nyílászárók, hőszigetelt, fokozott légzárású ablak elhelyezése, előre kihagyott falnyílásba, (szerelvényezéssel, illesztéssel), 4,00 m kerület felett, középnyíló-nyíló,  kétszárnyú középnyíló-nyíló ablak, U = 1,1 W/m²K alapimpregnált, hossztoldott 150 x 150 cm",7,"db",null,null,0,0]
[null,null,"Munkanem összesen (HUF)",{"$nulls":4},{"$f":"ROUND(SUM(H2:H9),0)","v":0},{"$f":"ROUND(SUM(I2:I9),0)","v":0}]

{"sheet":"45.Fém nyílászáró és épületlak","index":11,"n_rows":3,"n_cols":9,"rows_kept":3,"cut":false,"hidden":false,"merged":[]}
["Ssz.","Tételszám","Tétel szövege","Menny.","Egység","Anyag egységár","Díj egységre","Anyag összesen","Díj összesen"]
[1,"45-000-2.3","Rácsok, korlátok, kerítések bontása, ablakrács",16,"db",null,null,{"$f":"ROUND(F2*D2,0)","v":0},{"$f":"ROUND(G2*D2,0)","v":0}]
[null,null,"Munkanem összesen (HUF)",{"$nulls":4},{"$f":"ROUND(SUM(H2:H2),0)","v":0},{"$f":"ROUND(SUM(I2:I2),0)","v":0}]

{"sheet":"47.Felületképzés","index":12,"n_rows":13,"n_cols":9,"rows_kept":13,"cut":false,"hidden":false,"merged":[]}
["Ssz.","Tételszám","Tétel szövege","Menny.","Egység","Anyag egységár","Díj egységre","Anyag összesen","Díj összesen"]
[1,"47-021-12.3.1","Korróziógátló alapozás rácson, korláton, kerítésen, sodronyhálón, műgyanta kötőanyagú, oldószertartalmú festékkel",5,"m2",null,null,{"$f":"ROUND(F2*D2,0)","v":0},{"$f":"ROUND(G2*D2,0)","v":0}]
[2,"47-000-1.3.1.2","Belső festéseknél felület előkészítése, részmunkák; vizes diszperziós falfesték lekaparása, bármilyen padozatú helységben, tagolt felületen",450,"m2",null,null,0,0]
[3,"47-000-1.21.7.1.1-0419501","Belső festéseknél felület előkészítése, részmunkák; glettelés, gipszes glettel, vakolt felületen, tagolatlan felületen, POLI-FARBE glettgipsz 0-6, gipszes, beltéri glettanyag, fehér",450,"m2",null,null,0,0]
[4,"47-011-15.1.1.1-0151171","Diszperziós festés (két rétegben) műanyag bázisú vizes-diszperziós  fehér vagy gyárilag színezett festékkel, új vagy régi lekapart, előkészített alapfelületen, vakolaton, két rétegben, tagolatlan sima felületen, Héra belső falfesték oldószermentes piros tetős EAN: 5996281078072",3047,"m2",null,null,0,0]
[5,"47-021-12.5.2","Korróziógátló alapozás fűtőtesten, NÁ 80 feletti csövön, műgyanta kötőanyagú, vizes hígítású festékkel",4,"m2",null,null,0,0]
[6,"47-021-12.4.2-0137141","Korróziógátló alapozás cső és regisztercső felületén (NÁ 80-ig), függesztőn és tartóvason, sormosdó állványzaton, műgyanta kötőanyagú, vizes hígítású festékkel, Disboroof Korrodeck korróziógátló festék, fehér, selyemfényű",222,"m",null,null,0,0]
[7,"47-021-31.4.2-0160017","Acélfelületek átvonó festése cső és regisztercső felületén (NÁ 80-ig), függesztőn és tartóvason, sormosdó állványzaton műgyanta kötőanyagú, vizes hígítású festékkel, POLI-FARBE Cellkolor Aqua selyemfényű vizes zománc fehér",222,"m",null,null,0,0]
[8,"47-021-31.5.2-0137141","Acélfelületek átvonó festése fűtőtesten, NÁ 80 feletti csövön műgyanta kötőanyagú, vizes hígítású festékkel, Disboroof Korrodeck korróziógátló festék, fehér, selyemfényű",4,"m2",null,null,0,0]
[9,"47-071-31.5.2-0221211","Acélfelületek átvonó festése (szórásos technológiával), vizes bázisú, oldószermentes hővédő bevonattal, két rétegben, MANTI Ceramic Technological M vízzáró hővédő bevonat, tetőkre, nem nedvszívó felületek kül- és beltéri hővédelméhez, gépi felhordással, fehér alapszínben, 0,6-1 mm végleges rétegvastagságban, Csz: MCTM",5,"m2",null,null,0,0]
[10,"47-031-1.1.2.2-0160033","Belső fafelületek alapmázolása, műgyantabázisú vizes diszperziós lazúrokkal, tagolt felületen, POLI-FARBE Cellkolor Aqua univerzális alapozó, fehér színben",500,"m2",null,null,0,0]
[11,"47-031-1.5.1.2-0130361","Belső fafelületek zománclakkozása, műgyantabázisú (alkid) oldószertartalmú zománccal, tagolt felületen, Trinát zománc, magasfényű, fehér 100, EAN: 5995061119035",500,"m2",null,null,0,0]
[null,null,"Munkanem összesen (HUF)",{"$nulls":4},{"$f":"ROUND(SUM(H2:H12),0)","v":0},{"$f":"ROUND(SUM(I2:I12),0)","v":0}]

{"sheet":"48.Szigetelés","index":13,"n_rows":3,"n_cols":9,"rows_kept":3,"cut":false,"hidden":false,"merged":[]}
["Ssz.","Tételszám","Tétel szövege","Menny.","Egység","Anyag egységár","Díj egységre","Anyag összesen","Díj összesen"]
[1,"48-004-1.1.1.1.2-0420305","Üzemi-használati víz elleni szigetelés; Bitumenes lemez szigetelés aljzatának  kellősítése, vízszintes felületen, egy rétegben, vízbázisú bitumenemulzióval (enyhén nedves felületen), BÜSSCHER & HOFFMANN BÜSCHERIT SILOLACK (SK 25)  fedőréteg bitumenoldat, hidegkellősítő, hidegen feldolgozható, oldószer mentes, nem gyúlékony, betonra, könnyűbetonra, kihézagolt falazatra, cementvakolatra vagy fém aljzatszerkezetre, fedő réteg, zöldtakarmány-tárolókhoz, ivóvíz tartályokhoz, csővezetékekhez, acélszerkezetekhez, istálló berendezésekhez, Csz.: H70041",116,"m2",null,null,{"$f":"ROUND(F2*D2,0)","v":0},{"$f":"ROUND(G2*D2,0)","v":0}]
[null,null,"Munkanem összesen (HUF)",{"$nulls":4},{"$f":"ROUND(SUM(H2:H2),0)","v":0},{"$f":"ROUND(SUM(I2:I2),0)","v":0}]

{"sheet":"71.Elektromos energiaellátás,","index":14,"n_rows":3,"n_cols":9,"rows_kept":3,"cut":false,"hidden":false,"merged":[]}
["Ssz.","Tételszám","Tétel szövege","Menny.","Egység","Anyag egységár","Díj egységre","Anyag összesen","Díj összesen"]
[1,"71-000-1.11","kapcsolók cseréje",3,"db",null,null,{"$f":"ROUND(F2*D2,0)","v":0},{"$f":"ROUND(G2*D2,0)","v":0}]
[null,null,"Munkanem összesen (HUF)",{"$nulls":4},{"$f":"ROUND(SUM(H2:H2),0)","v":0},{"$f":"ROUND(SUM(I2:I2),0)","v":0}]

{"sheet":"82.Épületgépészeti szerelvénye","index":15,"n_rows":7,"n_cols":9,"rows_kept":7,"cut":false,"hidden":false,"merged":[]}
["Ssz.","Tételszám","Tétel szövege","Menny.","Egység","Anyag egységár","Díj egységre","Anyag összesen","Díj összesen"]
[1,"82-000-3.2","Vízellátás berendezési tárgyak leszerelése, falikutak, mosdók",4,"db",null,null,{"$f":"ROUND(F2*D2,0)","v":0},{"$f":"ROUND(G2*D2,0)","v":0}]
[2,"82-000-3.4","Vízellátás berendezési tárgyak leszerelése, WC csésze tartozékokkal",2,"db",null,null,{"$f":"ROUND(F3*D3,0)","v":0},{"$f":"ROUND(G3*D3,0)","v":0}]
[3,"82-009-5.1-0112791","Mosdó vagy mosómedence berendezés elhelyezése és bekötése, kifolyószelep, bűzelzáró és sarokszelep nélkül, falra szerelhető porcelán kivitelben (komplett), ALFÖLDI/BÁZIS porcelán mosdó 65 cm, 3 csaplyukkal, fúrt, 4191 65 01, fehér",4,"db",null,null,{"$f":"ROUND(F4*D4,0)","v":0},{"$f":"ROUND(G4*D4,0)","v":0}]
[4,"82-009-11.1.4.4","WC csésze elhelyezése és bekötése, sarokszeleppel, WC ülőkével, nyomógombbal, porcelánból, monoblokkos, hátsókifolyású mélyöblítésű kivitelben",2,"db",null,null,{"$f":"ROUND(F5*D5,0)","v":0},{"$f":"ROUND(G5*D5,0)","v":0}]
[5,"82-009-9.2.1-0210041","Zuhany szerelvényeinek teljes cseréje",3,"db",null,null,{"$f":"ROUND(F6*D6,0)","v":0},{"$f":"ROUND(G6*D6,0)","v":0}]
[null,null,"Munkanem összesen (HUF)",{"$nulls":4},{"$f":"ROUND(SUM(H2:H6),0)","v":0},{"$f":"ROUND(SUM(I2:I6),0)","v":0}]

{"sheet":"90.Ideiglenes felületvédelem é","index":16,"n_rows":3,"n_cols":9,"rows_kept":3,"cut":false,"hidden":false,"merged":[]}
["Ssz.","Tételszám","Tétel szövege","Menny.","Egység","Anyag egységár","Díj egységre","Anyag összesen","Díj összesen"]
[1,"90-008-1-0110202","Festés előtt burkolatok takarásának készítése, Takarás készítése fóliával",6,"100 m2",null,null,{"$f":"ROUND(F2*D2,0)","v":0},{"$f":"ROUND(G2*D2,0)","v":0}]
[null,null,"Munkanem összesen (HUF)",{"$nulls":4},{"$f":"ROUND(SUM(H2:H2),0)","v":0},{"$f":"ROUND(SUM(I2:I2),0)","v":0}]